[Event "*** Titled Tuesday Blitz"]
[Site "Chess.com"]
[Date "2019.11.05"]
[Round "5"]
[White "YQPerez"]
[Black "Alexander_Zubov"]
[Result "1-0"]
[WhiteElo "2889"]
[BlackElo "2949"]
[TimeControl "180+2"]
[EndTime "14:07:28 PST"]
[Termination "YQPerez won by checkmate"]

1. e4 {[%clk 0:03:01.9]} 1... Nc6 {[%clk 0:02:59.7]} 2. Nf3 {[%clk 0:03:00.1]}
2... d6 {[%clk 0:03:00]} 3. d4 {[%clk 0:02:59.2]} 3... Nf6 {[%clk 0:02:59.9]} 4.
Nc3 {[%clk 0:02:44.9]} 4... g6 {[%clk 0:03:00]} 5. Bb5 {[%clk 0:02:39.3]} 5...
a6 {[%clk 0:02:58.8]} 6. Bxc6+ {[%clk 0:02:37.8]} 6... bxc6 {[%clk 0:02:59.7]}
7. O-O {[%clk 0:02:37.8]} 7... Bg7 {[%clk 0:03:00.4]} 8. h3 {[%clk 0:02:33.1]}
8... O-O {[%clk 0:03:00.5]} 9. Re1 {[%clk 0:02:29]} 9... Rb8 {[%clk 0:02:54.8]}
10. e5 {[%clk 0:02:26.4]} 10... Nd5 {[%clk 0:02:44.8]} 11. Ne4 {[%clk
0:02:23.4]} 11... Nb6 {[%clk 0:02:32.7]} 12. Qe2 {[%clk 0:02:14.9]} 12... f6
{[%clk 0:02:15.3]} 13. c4 {[%clk 0:01:56.1]} 13... a5 {[%clk 0:02:04.1]} 14. b3
{[%clk 0:01:55.1]} 14... a4 {[%clk 0:02:03.1]} 15. Bb2 {[%clk 0:01:51.7]} 15...
axb3 {[%clk 0:01:56.9]} 16. axb3 {[%clk 0:01:53.6]} 16... Kh8 {[%clk 0:01:49.2]}
17. Ng3 {[%clk 0:01:46]} 17... Bd7 {[%clk 0:00:31.1]} 18. e6 {[%clk 0:01:25]}
18... Bc8 {[%clk 0:00:28.3]} 19. h4 {[%clk 0:01:22.8]} 19... Qe8 {[%clk
0:00:24.4]} 20. h5 {[%clk 0:01:08.6]} 20... f5 {[%clk 0:00:21.5]} 21. Ng5 {[%clk
0:01:01.2]} 21... f4 {[%clk 0:00:19.1]} 22. Nf7+ {[%clk 0:00:59.8]} 22... Rxf7
{[%clk 0:00:17.7]} 23. exf7 {[%clk 0:00:59]} 23... Qxf7 {[%clk 0:00:18.6]} 24.
Qxe7 {[%clk 0:00:50.3]} 24... Kg8 {[%clk 0:00:19.4]} 25. Qd8+ {[%clk 0:00:45.2]}
25... Bf8 {[%clk 0:00:20.8]} 26. hxg6 {[%clk 0:00:43.3]} 26... hxg6 {[%clk
0:00:22.7]} 27. Ne4 {[%clk 0:00:41]} 27... Nd7 {[%clk 0:00:19.7]} 28. d5 {[%clk
0:00:39.3]} 28... cxd5 {[%clk 0:00:14.4]} 29. Ng5 {[%clk 0:00:28]} 29... Qf5
{[%clk 0:00:15.1]} 30. Ne6 {[%clk 0:00:23.5]} 30... Rxb3 {[%clk 0:00:12.4]} 31.
Qxc8 {[%clk 0:00:21.1]} 31... Rxb2 {[%clk 0:00:11.8]} 32. Qxd7 {[%clk
0:00:20.6]} 32... f3 {[%clk 0:00:13.5]} 33. Ra8 {[%clk 0:00:17.4]} 33... Rb1
{[%clk 0:00:11.8]} 34. Qg7# {[%clk 0:00:15.8]} 1-0

[Event "*** Titled Tuesday Blitz"]
[Site "Chess.com"]
[Date "2019.11.05"]
[Round "5"]
[White "ural58"]
[Black "NTBT_DHS"]
[Result "0-1"]
[WhiteElo "2440"]
[BlackElo "2663"]
[TimeControl "180+2"]
[EndTime "14:07:33 PST"]
[Termination "NTBT_DHS won on time"]

1. Nc3 {[%clk 0:03:01.9]} 1... g6 {[%clk 0:02:57.4]} 2. d4 {[%clk 0:03:01.7]}
2... Bg7 {[%clk 0:02:56.2]} 3. h4 {[%clk 0:03:00.5]} 3... Nf6 {[%clk 0:02:55.7]}
4. h5 {[%clk 0:02:55.5]} 4... Nxh5 {[%clk 0:02:56.2]} 5. e4 {[%clk 0:02:56.1]}
5... d6 {[%clk 0:02:56]} 6. g4 {[%clk 0:02:51.5]} 6... Nf6 {[%clk 0:02:56.6]} 7.
g5 {[%clk 0:02:52.3]} 7... Nfd7 {[%clk 0:02:54.1]} 8. Qd3 {[%clk 0:02:52.6]}
8... c5 {[%clk 0:02:54]} 9. d5 {[%clk 0:02:53.5]} 9... a6 {[%clk 0:02:54.6]} 10.
a4 {[%clk 0:02:53.7]} 10... Qa5 {[%clk 0:02:54.5]} 11. Bd2 {[%clk 0:02:52.2]}
11... Ne5 {[%clk 0:02:55.5]} 12. Qg3 {[%clk 0:02:52.4]} 12... Qb4 {[%clk
0:02:53.7]} 13. f4 {[%clk 0:01:51.3]} 13... Nc4 {[%clk 0:02:50]} 14. Bxc4 {[%clk
0:01:49.5]} 14... Qxc4 {[%clk 0:02:51.9]} 15. Nge2 {[%clk 0:01:51]} 15... Qb4
{[%clk 0:02:20.4]} 16. Qd3 {[%clk 0:01:15.3]} 16... Bd7 {[%clk 0:02:13.3]} 17.
b3 {[%clk 0:00:57.2]} 17... Qa5 {[%clk 0:01:55.1]} 18. Ra2 {[%clk 0:00:38.9]}
18... Qc7 {[%clk 0:01:51.5]} 19. a5 {[%clk 0:00:39.1]} 19... h5 {[%clk
0:01:51.2]} 20. Qg3 {[%clk 0:00:27.1]} 20... Bg4 {[%clk 0:01:50.8]} 21. Nc1
{[%clk 0:00:24.7]} 21... Nd7 {[%clk 0:01:48.7]} 22. Nd3 {[%clk 0:00:24.2]} 22...
c4 {[%clk 0:01:49.6]} 23. Nf2 {[%clk 0:00:21.5]} 23... cxb3 {[%clk 0:01:46]} 24.
cxb3 {[%clk 0:00:22.6]} 24... Rc8 {[%clk 0:01:36.5]} 25. Nxg4 {[%clk 0:00:23.1]}
25... Bxc3 {[%clk 0:01:36.9]} 26. Nf2 {[%clk 0:00:19.6]} 26... Bxd2+ {[%clk
0:01:36.7]} 27. Rxd2 {[%clk 0:00:20.5]} 27... Qxa5 {[%clk 0:01:36.2]} 28. Qd3
{[%clk 0:00:17.6]} 28... Rc3 {[%clk 0:01:32.9]} 29. Qd4 {[%clk 0:00:18.2]} 29...
O-O {[%clk 0:01:30.1]} 30. b4 {[%clk 0:00:19.2]} 30... Rc1+ {[%clk 0:01:26.5]}
31. Ke2 {[%clk 0:00:17.3]} 31... Qb5+ {[%clk 0:01:27.4]} 32. Kf3 {[%clk
0:00:17.6]} 32... Rxh1 {[%clk 0:01:27.5]} 33. Nxh1 {[%clk 0:00:19.5]} 33... Qf1+
{[%clk 0:01:26.5]} 34. Nf2 {[%clk 0:00:20.1]} 34... Rc8 {[%clk 0:01:28.1]} 35.
Qd3 {[%clk 0:00:20.1]} 35... Qxd3+ {[%clk 0:01:26.9]} 36. Nxd3 {[%clk
0:00:21.1]} 36... Rc3 {[%clk 0:01:27.6]} 37. Ke2 {[%clk 0:00:20.4]} 37... Nb6
{[%clk 0:01:27.7]} 38. Rb2 {[%clk 0:00:20.7]} 38... Na4 {[%clk 0:01:27.1]} 39.
Rb1 {[%clk 0:00:21]} 39... Rc4 {[%clk 0:01:26.5]} 40. Ke3 {[%clk 0:00:21.8]}
40... Nc3 {[%clk 0:01:26.8]} 41. Rc1 {[%clk 0:00:19.9]} 41... b5 {[%clk
0:01:25.6]} 42. Nf2 {[%clk 0:00:19.3]} 42... Nxd5+ {[%clk 0:01:26.7]} 0-1

[Event "*** Titled Tuesday Blitz"]
[Site "Chess.com"]
[Date "2019.11.05"]
[Round "5"]
[White "oogee"]
[Black "Borsuk_Konstantin"]
[Result "1-0"]
[WhiteElo "2280"]
[BlackElo "2497"]
[TimeControl "180+2"]
[EndTime "14:07:39 PST"]
[Termination "oogee won by resignation"]

1. d4 {[%clk 0:03:01.9]} 1... Nf6 {[%clk 0:03:00.7]} 2. c4 {[%clk 0:03:02.6]}
2... e6 {[%clk 0:03:01.9]} 3. g3 {[%clk 0:03:03.3]} 3... Bb4+ {[%clk 0:03:01.7]}
4. Bd2 {[%clk 0:03:03]} 4... a5 {[%clk 0:03:01.2]} 5. Nf3 {[%clk 0:03:01.5]}
5... b6 {[%clk 0:02:57.8]} 6. Bg2 {[%clk 0:03:01.6]} 6... Bb7 {[%clk 0:02:58.7]}
7. O-O {[%clk 0:03:02.1]} 7... O-O {[%clk 0:02:57.3]} 8. Bg5 {[%clk 0:02:58.7]}
8... h6 {[%clk 0:02:53.6]} 9. Bxf6 {[%clk 0:02:58.7]} 9... Qxf6 {[%clk
0:02:53.8]} 10. a3 {[%clk 0:02:59.4]} 10... Be7 {[%clk 0:02:54]} 11. Nc3 {[%clk
0:02:57.5]} 11... g5 {[%clk 0:02:45.1]} 12. e4 {[%clk 0:02:51.6]} 12... Qg7
{[%clk 0:02:36.3]} 13. d5 {[%clk 0:02:42.3]} 13... e5 {[%clk 0:02:25.5]} 14. Qc2
{[%clk 0:02:25.5]} 14... Na6 {[%clk 0:02:20.5]} 15. Nd1 {[%clk 0:02:24.7]} 15...
Bc5 {[%clk 0:02:05.4]} 16. Ne3 {[%clk 0:02:22.6]} 16... Bxe3 {[%clk 0:02:01.2]}
17. fxe3 {[%clk 0:02:23.8]} 17... d6 {[%clk 0:01:55.3]} 18. Bh3 {[%clk
0:02:15.1]} 18... g4 {[%clk 0:01:45.9]} 19. Nh4 {[%clk 0:02:13.1]} 19... gxh3
{[%clk 0:01:44]} 20. Nf5 {[%clk 0:02:13.8]} 20... Qg5 {[%clk 0:01:43.8]} 21. Rf4
{[%clk 0:01:39]} 21... exf4 {[%clk 0:01:31.2]} 22. exf4 {[%clk 0:01:39.3]} 22...
Qf6 {[%clk 0:01:09.8]} 23. e5 {[%clk 0:01:10.6]} 23... dxe5 {[%clk 0:01:08.4]}
24. fxe5 {[%clk 0:01:11.8]} 24... Qg5 {[%clk 0:00:59]} 25. d6 {[%clk 0:00:52.5]}
25... Rae8 {[%clk 0:00:51.3]} 26. Rf1 {[%clk 0:00:42.6]} 26... Rxe5 {[%clk
0:00:44.7]} 27. Rf4 {[%clk 0:00:38.3]} 27... cxd6 {[%clk 0:00:35.9]} 28. Rg4
{[%clk 0:00:34.9]} 28... Qxg4 {[%clk 0:00:24.4]} 29. Nxh6+ {[%clk 0:00:35.8]}
29... Kg7 {[%clk 0:00:23.8]} 30. Nxg4 {[%clk 0:00:36.8]} 30... Rg5 {[%clk
0:00:18.4]} 31. Qc3+ {[%clk 0:00:36.2]} 31... f6 {[%clk 0:00:19.7]} 32. Nf2
{[%clk 0:00:34.1]} 32... Nc5 {[%clk 0:00:20.5]} 33. Nxh3 {[%clk 0:00:33.7]}
33... Re5 {[%clk 0:00:21.5]} 34. Qd4 {[%clk 0:00:30.2]} 34... Rfe8 {[%clk
0:00:18.2]} 35. Qg4+ {[%clk 0:00:30.7]} 35... Kf7 {[%clk 0:00:18.4]} 36. Nf4
{[%clk 0:00:31.4]} 36... Ne4 {[%clk 0:00:18.1]} 37. Qg6+ {[%clk 0:00:30]} 37...
Ke7 {[%clk 0:00:19.4]} 38. Qg7+ {[%clk 0:00:29.7]} 38... Kd8 {[%clk 0:00:18.6]}
39. Qxb7 {[%clk 0:00:31]} 39... Ng5 {[%clk 0:00:11]} 40. Qxb6+ {[%clk
0:00:31.9]} 40... Ke7 {[%clk 0:00:11.7]} 41. Qc7+ {[%clk 0:00:32.8]} 41... Kf8
{[%clk 0:00:12.3]} 42. Ng6+ {[%clk 0:00:33.6]} 1-0

[Event "*** Titled Tuesday Blitz"]
[Site "Chess.com"]
[Date "2019.11.05"]
[Round "5"]
[White "boasovietica"]
[Black "babadroga92"]
[Result "1-0"]
[WhiteElo "2454"]
[BlackElo "2641"]
[TimeControl "180+2"]
[EndTime "14:07:45 PST"]
[Termination "boasovietica won on time"]

1. e4 {[%clk 0:03:01.9]} 1... e5 {[%clk 0:03:00.7]} 2. Nf3 {[%clk 0:03:02.4]}
2... Nf6 {[%clk 0:03:02.3]} 3. Nc3 {[%clk 0:02:59.7]} 3... Bb4 {[%clk
0:03:02.9]} 4. Bc4 {[%clk 0:02:58.4]} 4... O-O {[%clk 0:03:03.5]} 5. O-O {[%clk
0:02:57.5]} 5... Bxc3 {[%clk 0:03:03.4]} 6. dxc3 {[%clk 0:02:49.8]} 6... d6
{[%clk 0:02:55.9]} 7. Qe2 {[%clk 0:02:26.6]} 7... Bg4 {[%clk 0:02:18.8]} 8. Bg5
{[%clk 0:02:23.8]} 8... h6 {[%clk 0:02:16.3]} 9. Bh4 {[%clk 0:02:20.7]} 9...
Nbd7 {[%clk 0:02:10.1]} 10. h3 {[%clk 0:02:21.2]} 10... Bh5 {[%clk 0:02:11]} 11.
g4 {[%clk 0:02:11.3]} 11... Bg6 {[%clk 0:02:10.9]} 12. Nd2 {[%clk 0:02:01.5]}
12... Qe8 {[%clk 0:01:57.7]} 13. Rae1 {[%clk 0:01:54.9]} 13... c6 {[%clk
0:01:38.2]} 14. Bd3 {[%clk 0:01:53.8]} 14... Nh7 {[%clk 0:01:33.4]} 15. Nc4
{[%clk 0:01:38.8]} 15... Qe6 {[%clk 0:01:25]} 16. a3 {[%clk 0:01:28.9]} 16...
Rae8 {[%clk 0:01:12.3]} 17. Ne3 {[%clk 0:01:28.7]} 17... d5 {[%clk 0:01:11]} 18.
Nf5 {[%clk 0:01:21.7]} 18... Nc5 {[%clk 0:00:59]} 19. f3 {[%clk 0:01:09.1]}
19... a6 {[%clk 0:00:44.9]} 20. Bf2 {[%clk 0:00:46.3]} 20... Nxd3 {[%clk
0:00:39]} 21. cxd3 {[%clk 0:00:43]} 21... Bxf5 {[%clk 0:00:30.7]} 22. gxf5
{[%clk 0:00:40.9]} 22... Qd6 {[%clk 0:00:25.4]} 23. b4 {[%clk 0:00:34.8]} 23...
d4 {[%clk 0:00:26.4]} 24. cxd4 {[%clk 0:00:29.9]} 24... exd4 {[%clk 0:00:28.3]}
25. Kg2 {[%clk 0:00:18.1]} 25... Nf6 {[%clk 0:00:25.5]} 26. Bg3 {[%clk
0:00:18.8]} 26... Qd7 {[%clk 0:00:24.3]} 27. Rg1 {[%clk 0:00:19.5]} 27... Nh5
{[%clk 0:00:23.3]} 28. Kh2 {[%clk 0:00:20]} 28... Kh7 {[%clk 0:00:19.1]} 29. Rg2
{[%clk 0:00:18.7]} 29... g5 {[%clk 0:00:18.5]} 30. Reg1 {[%clk 0:00:13.8]} 30...
f6 {[%clk 0:00:17.2]} 31. f4 {[%clk 0:00:12.8]} 31... Nxg3 {[%clk 0:00:14.6]}
32. Rxg3 {[%clk 0:00:13.5]} 32... Qf7 {[%clk 0:00:14.3]} 33. fxg5 {[%clk
0:00:12.7]} 33... hxg5 {[%clk 0:00:08.5]} 34. h4 {[%clk 0:00:13.9]} 1-0

[Event "*** Titled Tuesday Blitz"]
[Site "Chess.com"]
[Date "2019.11.05"]
[Round "5"]
[White "Manukyan_Artak"]
[Black "cherryandmint"]
[Result "0-1"]
[WhiteElo "2387"]
[BlackElo "2816"]
[TimeControl "180+2"]
[EndTime "14:08:02 PST"]
[Termination "cherryandmint won by resignation"]

1. e4 {[%clk 0:03:01.9]} 1... c5 {[%clk 0:03:00.4]} 2. Nf3 {[%clk 0:03:03.1]}
2... Nc6 {[%clk 0:03:01.4]} 3. c3 {[%clk 0:03:04.1]} 3... e6 {[%clk 0:03:01.5]}
4. d4 {[%clk 0:03:04.7]} 4... d5 {[%clk 0:03:03.4]} 5. e5 {[%clk 0:03:05.5]}
5... Qb6 {[%clk 0:03:04.1]} 6. a3 {[%clk 0:03:06.4]} 6... Nh6 {[%clk 0:03:05.4]}
7. b4 {[%clk 0:03:07.2]} 7... cxd4 {[%clk 0:03:06.1]} 8. cxd4 {[%clk 0:03:09.1]}
8... Nf5 {[%clk 0:03:06.7]} 9. Bb2 {[%clk 0:03:10.3]} 9... Bd7 {[%clk 0:03:08]}
10. g4 {[%clk 0:03:07.3]} 10... Nfe7 {[%clk 0:03:08.5]} 11. Nc3 {[%clk
0:03:07.4]} 11... h5 {[%clk 0:03:07]} 12. Na4 {[%clk 0:03:07.3]} 12... Qd8
{[%clk 0:03:04.3]} 13. Nc5 {[%clk 0:03:00.6]} 13... Bc8 {[%clk 0:02:53.9]} 14.
g5 {[%clk 0:02:56.9]} 14... b6 {[%clk 0:02:51.6]} 15. Nb3 {[%clk 0:02:55.6]}
15... Nf5 {[%clk 0:02:50.6]} 16. h4 {[%clk 0:02:55.6]} 16... Be7 {[%clk
0:02:46.7]} 17. Bd3 {[%clk 0:02:55.2]} 17... g6 {[%clk 0:02:45.8]} 18. Rc1
{[%clk 0:02:53.1]} 18... Bd7 {[%clk 0:02:45.1]} 19. O-O {[%clk 0:02:47.3]} 19...
O-O {[%clk 0:02:45.4]} 20. Bxf5 {[%clk 0:02:02]} 20... exf5 {[%clk 0:02:45.9]}
21. Qd3 {[%clk 0:01:46.8]} 21... Qe8 {[%clk 0:02:45.5]} 22. Rfd1 {[%clk
0:01:39.6]} 22... f4 {[%clk 0:02:44.7]} 23. b5 {[%clk 0:01:24.8]} 23... Nd8
{[%clk 0:02:45.1]} 24. a4 {[%clk 0:01:25]} 24... Bg4 {[%clk 0:02:42]} 25. Nbd2
{[%clk 0:01:22.3]} 25... Qd7 {[%clk 0:02:40.8]} 26. Ba3 {[%clk 0:01:20.6]} 26...
Ne6 {[%clk 0:02:34.4]} 27. Bxe7 {[%clk 0:01:20]} 27... Qxe7 {[%clk 0:02:36.3]}
28. Rc6 {[%clk 0:01:14.2]} 28... Qb4 {[%clk 0:02:31.2]} 29. Ra1 {[%clk
0:00:54.7]} 29... Rfc8 {[%clk 0:02:23.2]} 30. Rac1 {[%clk 0:00:52.6]} 30... Rxc6
{[%clk 0:02:22]} 31. bxc6 {[%clk 0:00:54.5]} 31... Qxa4 {[%clk 0:02:22.6]} 32.
Kg2 {[%clk 0:00:48.2]} 32... Rc8 {[%clk 0:02:23]} 33. Qc3 {[%clk 0:00:35]} 33...
Kg7 {[%clk 0:02:19]} 34. Ra1 {[%clk 0:00:33.9]} 34... Rxc6 {[%clk 0:01:58.2]}
35. Rxa4 {[%clk 0:00:31.6]} 35... Rxc3 {[%clk 0:01:58.9]} 36. Rxa7 {[%clk
0:00:33.5]} 36... Rd3 {[%clk 0:01:55.3]} 37. Ra4 {[%clk 0:00:33.4]} 37... b5
{[%clk 0:01:45.6]} 38. Rb4 {[%clk 0:00:34.5]} 38... Nc7 {[%clk 0:01:46.7]} 39.
e6 {[%clk 0:00:19.9]} 39... fxe6 {[%clk 0:01:43.4]} 40. Rb2 {[%clk 0:00:18.8]}
40... Bf5 {[%clk 0:01:37.7]} 41. Ne5 {[%clk 0:00:17.9]} 41... Rxd4 {[%clk
0:01:35.7]} 42. Ndf3 {[%clk 0:00:13.5]} 42... Ra4 {[%clk 0:01:36.5]} 43. Nc6
{[%clk 0:00:12.2]} 43... Be4 {[%clk 0:01:34]} 44. Rb3 {[%clk 0:00:12.2]} 44...
Kf8 {[%clk 0:01:30.4]} 45. Kf1 {[%clk 0:00:13]} 45... Ra1+ {[%clk 0:01:30.2]}
46. Ke2 {[%clk 0:00:14.2]} 46... Ra2+ {[%clk 0:01:31.3]} 47. Ke1 {[%clk
0:00:15.3]} 47... Na6 {[%clk 0:01:27.2]} 48. Nfd4 {[%clk 0:00:10.5]} 48... Nc5
{[%clk 0:01:19.3]} 49. Rxb5 {[%clk 0:00:11.1]} 49... Nd3+ {[%clk 0:01:20]} 50.
Kd1 {[%clk 0:00:12]} 50... Nxf2+ {[%clk 0:01:20.6]} 51. Kc1 {[%clk 0:00:13.2]}
51... Nd3+ {[%clk 0:01:21.2]} 52. Kb1 {[%clk 0:00:11.8]} 52... Nb4+ {[%clk
0:01:11.9]} 53. Kc1 {[%clk 0:00:09.2]} 53... Nxc6 {[%clk 0:01:13.2]} 54. Nxc6
{[%clk 0:00:09.9]} 54... Rc2+ {[%clk 0:01:14.5]} 0-1

[Event "*** Titled Tuesday Blitz"]
[Site "Chess.com"]
[Date "2019.11.05"]
[Round "5"]
[White "chito89"]
[Black "Genghis_K"]
[Result "0-1"]
[WhiteElo "2753"]
[BlackElo "2912"]
[TimeControl "180+2"]
[EndTime "14:08:07 PST"]
[Termination "Genghis_K won by resignation"]

1. e4 {[%clk 0:03:01.9]} 1... c6 {[%clk 0:03:00.2]} 2. d4 {[%clk 0:03:01.7]}
2... d5 {[%clk 0:03:01.7]} 3. exd5 {[%clk 0:03:00.1]} 3... cxd5 {[%clk
0:03:02.5]} 4. Bd3 {[%clk 0:03:01.5]} 4... Nc6 {[%clk 0:03:03.6]} 5. c3 {[%clk
0:03:02.2]} 5... Qc7 {[%clk 0:03:05.1]} 6. Ne2 {[%clk 0:03:02.4]} 6... Bg4
{[%clk 0:03:06.1]} 7. O-O {[%clk 0:03:02.8]} 7... e6 {[%clk 0:03:07.7]} 8. Qe1
{[%clk 0:03:03.8]} 8... Nf6 {[%clk 0:03:08.8]} 9. f3 {[%clk 0:03:03.8]} 9... Bh5
{[%clk 0:03:10.4]} 10. Qh4 {[%clk 0:03:04.1]} 10... h6 {[%clk 0:03:12]} 11. Ng3
{[%clk 0:02:57.3]} 11... Bg6 {[%clk 0:03:11.3]} 12. Bxg6 {[%clk 0:02:55.9]}
12... fxg6 {[%clk 0:03:13.2]} 13. Re1 {[%clk 0:02:49.2]} 13... Kf7 {[%clk
0:03:09.2]} 14. Bf4 {[%clk 0:02:33.6]} 14... Qb6 {[%clk 0:03:00.7]} 15. Nd2
{[%clk 0:02:33.8]} 15... e5 {[%clk 0:02:39.6]} 16. Be3 {[%clk 0:02:14.4]} 16...
exd4 {[%clk 0:02:39.8]} 17. Bf2 {[%clk 0:02:07.8]} 17... Qc7 {[%clk 0:02:12.8]}
18. cxd4 {[%clk 0:01:59.7]} 18... Bd6 {[%clk 0:02:12.7]} 19. Nb3 {[%clk
0:01:54.9]} 19... b6 {[%clk 0:02:06.6]} 20. Rab1 {[%clk 0:01:47.4]} 20... Qd7
{[%clk 0:02:00.2]} 21. f4 {[%clk 0:01:29.8]} 21... Rhe8 {[%clk 0:01:38.7]} 22.
Re5 {[%clk 0:01:28.1]} 22... g5 {[%clk 0:01:22.5]} 23. fxg5 {[%clk 0:01:27]}
23... Nxe5 {[%clk 0:01:24.1]} 24. gxf6 {[%clk 0:01:22.9]} 24... Qg4 {[%clk
0:01:24.7]} 25. Qh5+ {[%clk 0:01:20.4]} 25... Qxh5 {[%clk 0:01:17.3]} 26. Nxh5
{[%clk 0:01:19.6]} 26... Ng4 {[%clk 0:01:19]} 27. Nxg7 {[%clk 0:01:08.5]} 27...
Re2 {[%clk 0:01:16.9]} 28. Bh4 {[%clk 0:01:07.4]} 28... Rc8 {[%clk 0:01:06.9]}
29. Nf5 {[%clk 0:01:06.8]} 29... Bxh2+ {[%clk 0:01:06.8]} 30. Kh1 {[%clk
0:00:56.7]} 30... Rcc2 {[%clk 0:01:06.8]} 31. Rf1 {[%clk 0:00:49.5]} 31... Bc7
{[%clk 0:00:55.5]} 32. Nc1 {[%clk 0:00:49.7]} 32... Rxg2 {[%clk 0:00:56]} 33.
Re1 {[%clk 0:00:47.3]} 33... Rh2+ {[%clk 0:00:43.7]} 34. Kg1 {[%clk 0:00:47.6]}
34... Rhg2+ {[%clk 0:00:45.3]} 35. Kh1 {[%clk 0:00:48.5]} 35... Rh2+ {[%clk
0:00:32.7]} 36. Kg1 {[%clk 0:00:49.6]} 36... Rcg2+ {[%clk 0:00:34.6]} 37. Kf1
{[%clk 0:00:50.2]} 37... Rxb2 {[%clk 0:00:28.8]} 38. Kg1 {[%clk 0:00:49.1]}
38... Rhg2+ {[%clk 0:00:24.6]} 39. Kh1 {[%clk 0:00:49.7]} 39... Rh2+ {[%clk
0:00:21.9]} 40. Kg1 {[%clk 0:00:51.1]} 40... Rbg2+ {[%clk 0:00:22.1]} 41. Kf1
{[%clk 0:00:52.5]} 41... Nxf6 {[%clk 0:00:23.8]} 42. Re7+ {[%clk 0:00:45.4]}
42... Kg6 {[%clk 0:00:25.2]} 43. Ne3 {[%clk 0:00:46.8]} 43... Rd2 {[%clk
0:00:20.1]} 44. Ke1 {[%clk 0:00:35.9]} 44... Bf4 {[%clk 0:00:19.6]} 45. Bxf6
{[%clk 0:00:24.3]} 45... Bg3+ {[%clk 0:00:16.8]} 0-1

[Event "*** Titled Tuesday Blitz"]
[Site "Chess.com"]
[Date "2019.11.05"]
[Round "5"]
[White "DrRiebert"]
[Black "eldur16"]
[Result "0-1"]
[WhiteElo "2397"]
[BlackElo "2593"]
[TimeControl "180+2"]
[EndTime "14:08:07 PST"]
[Termination "eldur16 won by resignation"]

1. e4 {[%clk 0:03:01.9]} 1... g6 {[%clk 0:03:00.1]} 2. d4 {[%clk 0:02:59.3]}
2... Bg7 {[%clk 0:03:00.9]} 3. Nc3 {[%clk 0:03:00.8]} 3... d6 {[%clk 0:03:01.7]}
4. Be3 {[%clk 0:03:02.3]} 4... a6 {[%clk 0:03:01.9]} 5. h3 {[%clk 0:03:03.2]}
5... b5 {[%clk 0:03:00.4]} 6. g4 {[%clk 0:03:04.4]} 6... Bb7 {[%clk 0:02:58.3]}
7. Bg2 {[%clk 0:03:05.4]} 7... Nf6 {[%clk 0:02:57.3]} 8. a3 {[%clk 0:03:04.3]}
8... h5 {[%clk 0:02:56]} 9. g5 {[%clk 0:03:04]} 9... Nfd7 {[%clk 0:02:56.3]} 10.
Nge2 {[%clk 0:03:04.3]} 10... c5 {[%clk 0:02:53.6]} 11. O-O {[%clk 0:02:53.5]}
11... O-O {[%clk 0:02:50]} 12. d5 {[%clk 0:02:47]} 12... Nb6 {[%clk 0:02:37.2]}
13. f4 {[%clk 0:02:31.6]} 13... Nc4 {[%clk 0:02:32.3]} 14. Bc1 {[%clk
0:02:30.9]} 14... b4 {[%clk 0:02:28]} 15. axb4 {[%clk 0:02:20.9]} 15... cxb4
{[%clk 0:02:28.3]} 16. Na4 {[%clk 0:02:20.2]} 16... Nd7 {[%clk 0:02:27.9]} 17.
Kh1 {[%clk 0:02:15]} 17... a5 {[%clk 0:02:23.6]} 18. Rb1 {[%clk 0:01:45.6]}
18... Ndb6 {[%clk 0:02:17.8]} 19. Nxb6 {[%clk 0:01:32.7]} 19... Qxb6 {[%clk
0:02:17.4]} 20. Rf3 {[%clk 0:01:26.7]} 20... Rfc8 {[%clk 0:01:43.7]} 21. b3
{[%clk 0:01:12]} 21... Na3 {[%clk 0:01:39.6]} 22. Be3 {[%clk 0:01:13]} 22... Qc7
{[%clk 0:01:23.4]} 23. c4 {[%clk 0:00:53.6]} 23... bxc3 {[%clk 0:01:16.5]} 24.
Rc1 {[%clk 0:00:54]} 24... c2 {[%clk 0:01:15.4]} 25. Qf1 {[%clk 0:00:53.1]}
25... Ba6 {[%clk 0:01:11.3]} 26. f5 {[%clk 0:00:51.5]} 26... Be5 {[%clk
0:01:07.3]} 27. Qf2 {[%clk 0:00:33]} 27... Bxe2 {[%clk 0:01:01.5]} 28. Qxe2
{[%clk 0:00:34.9]} 28... Rab8 {[%clk 0:00:56.3]} 29. h4 {[%clk 0:00:25.4]} 29...
Rxb3 {[%clk 0:00:54]} 30. Bh3 {[%clk 0:00:26.2]} 30... Rcb8 {[%clk 0:00:47.4]}
31. fxg6 {[%clk 0:00:26.2]} 31... fxg6 {[%clk 0:00:47.6]} 32. Be6+ {[%clk
0:00:27.2]} 32... Kh8 {[%clk 0:00:48.2]} 33. Qf1 {[%clk 0:00:27.2]} 33... Bg7
{[%clk 0:00:31.9]} 34. Rf7 {[%clk 0:00:25.3]} 34... Qc3 {[%clk 0:00:14.3]} 35.
Bd2 {[%clk 0:00:13.9]} 35... Qxd2 {[%clk 0:00:09.7]} 36. Rxg7 {[%clk 0:00:13.7]}
36... Qxc1 {[%clk 0:00:10.2]} 37. Qxc1 {[%clk 0:00:04.1]} 37... Rb1 {[%clk
0:00:10.7]} 38. Rf7 {[%clk 0:00:03.3]} 0-1